bitfinex-derivatives/quotes_SOLF0:USTF0_20240816
["timestamp","ask_amount","ask_price","bid_price","bid_amount"]
[1723840666463,0.04851435,141.11,141.08,0.0480317]
[1723840666758,0.04851435,141.11,141.08,3.5908317]
[1723840666951,0.04851435,141.11,141.08,0.0480317]
[1723840667352,0.04851435,141.11,141.08,3.5907317]
[1723840668545,0.04851435,141.11,141.08,0.0480317]
[1723840669953,0.04851435,141.11,141.1,3.5423]
[1723840674165,0.04851435,141.11,141.09,3.5425]
[1723840674361,0.04851435,141.11,141.08,0.0480317]
[1723840675164,0.04851435,141.11,141.09,3.5425]
[1723840675860,3.59071435,141.11,141.08,3.5908317]
[1723840676164,0.04851435,141.11,141.08,0.0480317]
[1723840677069,3.59071435,141.11,141.08,3.5908317]
[1723840677953,3.59071435,141.11,141.09,3.5426]
[1723840678165,0.04851435,141.11,141.08,0.0480317]
[1723840678553,0.04851435,141.11,141.08,3.5907317]
[1723840678955,3.59061435,141.11,141.08,3.5907317]
[1723840679362,0.04851435,141.11,141.08,0.0480317]
[1723840679565,3.5425,141.1,141.08,0.0480317]
[1723840679869,13.64851435,141.11,141.08,0.0480317]
[1723840680058,18.38851435,141.11,141.08,0.0480317]
[1723840680254,3.5426,141.09,141.08,0.0480317]
[1723840680455,17.1426,141.09,141.08,0.0480317]
[1723840681869,3.5426,141.09,141.08,0.0480317]
[1723840683571,4.931,141.1,141.08,0.0480317]
[1723840683960,4.78851435,141.11,141.08,0.0480317]
[1723840684168,0.04851435,141.11,141.08,0.0480317]
[1723840685968,0.04851435,141.11,141.08,3.5908317]
[1723840687265,3.5424,141.1,141.08,0.0480317]
[1723840687472,0.04851435,141.11,141.08,0.0480317]
[1723840687966,34.05851435,141.11,141.08,0.0480317]
[1723840688364,41.12851435,141.11,141.08,0.0480317]
[1723840688873,3.5426,141.09,141.08,0.0480317]
[1723840694378,3.5424,141.1,141.08,0.0480317]
[1723840695367,3.59071435,141.11,141.08,0.0480317]
[1723840695574,0.04851435,141.11,141.08,0.0480317]
[1723840696478,3.59061435,141.11,141.08,0.0480317]
[1723840697979,3.5424,141.1,141.08,0.0480317]
[1723840698883,3.5426,141.09,141.08,0.0480317]
[1723840700069,10.6126,141.09,141.08,0.0480317]
[1723840700479,3.5436,141.05,141.04,1.005]
[1723840701179,37.5536,141.05,141.04,1.005]
[1723840701573,3.5436,141.05,141.04,1.005]
[1723840702074,37.5536,141.05,141.04,1.005]
[1723840702280,3.53307886,141.06,140.97,1.005]
[1723840702467,35.2895,141.05,140.97,1.005]
[1723840702675,0.05104982,141.03,140.99,3.545]
[1723840703077,0.05104982,141.03,140.98,3.5453]
[1723840703374,3.59534982,141.03,140.98,3.5453]
[1723840703776,0.05104982,141.03,140.97,1.005]
[1723840704174,0.05104982,141.03,140.98,34.01]
[1723840704478,0.05104982,141.03,140.99,3.545]
[1723840704680,0.05104982,141.03,141.0,34.01]
[1723840704884,0.05104982,141.03,141.02,37.5544]
[1723840705079,4.74,141.08,141.02,34.01]
[1723840705282,4.74,141.08,140.98,4.74]
[1723840705478,34.01,141.05,140.97,35.015]
[1723840705678,35.3498,141.07,140.99,34.01]
[1723840705879,1.2848,141.1,141.02,34.01]
[1723840706080,4.74,141.09,141.02,34.01]
[1723840706384,0.05341447,141.07,141.05,0.05148285]
[1723840706787,0.05341447,141.07,141.06,34.01]
[1723840706973,3.59613492,141.13,141.06,34.01]
[1723840707174,3.59613492,141.13,141.09,34.01]
[1723840707570,7.13773492,141.13,141.09,37.5524]
[1723840707769,3.5416,141.13,141.09,37.5524]
[1723840708182,0.05433434,141.12,141.1,0.04495274]
[1723840709477,3.59623434,141.12,141.1,0.04495274]
[1723840710577,3.5421,141.11,141.1,0.04495274]
[1723840713280,11.86433434,141.12,141.03,34.01]
[1723840713484,11.81,141.12,141.03,34.01]
[1723840713895,3.5428,141.08,141.03,34.01]
[1723840714397,3.544,141.04,140.98,34.01]
[1723840714686,0.04474151,141.02,140.98,34.01]
[1723840714883,0.04474151,141.02,141.0,0.04915016]
[1723840715893,0.04474151,141.02,141.0,34.05915016]
[1723840716387,0.04474151,141.02,141.01,3.5446]
[1723840723582,4.74,141.08,141.03,3.5441]
[1723840724189,3.5435,141.06,141.03,3.5441]
[1723840724493,11.81,141.08,140.98,34.01]
[1723840724680,0.05185888,141.06,141.03,0.05322439]
[1723840725386,3.5439,141.04,141.03,0.05322439]
[1723840736695,3.5437,141.05,141.03,0.05322439]
[1723840738102,8.33535888,141.06,141.03,0.05322439]
[1723840738995,8.33535888,141.06,140.97,1.005]
[1723840738996,34.01,141.05,140.97,1.005]
[1723840739298,44.5883138,141.05,140.97,1.005]
[1723840739793,4.74,141.06,140.97,35.015]
[1723840739991,8.29333763,141.06,140.97,35.015]
[1723840740191,8.29333763,141.06,140.95,3.46577159]
[1723840740192,3.5446,141.01,141.0,0.0538264]
[1723840740395,3.490374,141.0,140.93,3.5466]
[1723840740598,3.490374,141.0,140.99,0.05081814]
[1723840740902,3.5455,140.98,140.93,3.5466]
[1723840741303,3.490374,141.0,140.93,3.5466]
[1723840741304,0.05075371,140.97,140.94,0.05231288]
[1723840741697,3.5461,140.95,140.94,0.05231288]
[1723840741900,7.07,140.95,140.85,36.7527]
[1723840742095,7.07,140.95,140.85,1.3981]
[1723840742096,3.5469,140.92,140.85,1.3981]
[1723840742292,8.2869,140.92,140.85,1.3981]
[1723840742496,4.74,140.92,140.86,34.01]
[1723840742703,3.58256186,140.95,140.87,34.01]
[1723840742896,8.32256186,140.95,140.87,34.01]
[1723840743102,8.2862,140.95,140.87,37.5581]
[1723840743410,0.05362407,140.94,140.87,34.01]
[1723840743598,0.05362407,140.94,140.89,34.01]
[1723840744103,0.05362407,140.94,140.92,34.01]
[1723840744301,0.05362407,140.94,140.93,3.5466]
[1723840744505,4.74,141.0,140.93,34.01]
[1723840744708,8.285,141.0,140.95,3.5459]
[1723840745207,4.74,141.0,140.93,34.01]
[1723840745702,4.74,141.0,140.92,1.3911]
[1723840745703,0.04986995,140.98,140.97,3.5456]
[1723840747800,4.74,141.03,141.0,3.5448]
[1723840748008,4.74,141.03,140.97,34.01]
[1723840748208,4.74,141.06,140.99,34.01]
[1723840748510,3.5438,141.05,141.01,3.5446]
[1723840748704,3.5438,141.05,140.99,34.01]
[1723840748897,0.05237473,141.03,141.01,3.59003552]
[1723840749109,0.05237473,141.03,141.01,0.04563552]
[1723840750210,0.05237473,141.03,141.01,3.59003552]
[1723840750408,0.05237473,141.03,141.01,0.04563552]
[1723840751306,0.05237473,141.03,141.01,3.59013552]
[1723840751704,0.05237473,141.03,141.01,0.04563552]
[1723840752100,3.5444,141.02,141.01,0.04563552]
[1723840752507,9.632,141.02,141.01,0.04563552]
[1723840752906,3.5448,141.01,140.96,3.5457]
[1723840753414,41.08,141.01,140.95,3.5461]
[1723840753602,3.5452,140.99,140.92,36.7673]
[1723840753796,7.0772051,140.99,140.92,36.7673]
[1723840754010,0.04928911,140.97,140.94,0.05123034]
[1723840754401,0.04928911,140.97,140.95,3.5459]
[1723840754602,0.04928911,140.97,140.94,34.06123034]
[1723840755412,0.04928911,140.97,140.96,3.5459]
[1723840757114,0.04928911,140.97,140.95,3.546]
[1723840757509,0.04928911,140.97,140.94,34.06123034]
[1723840758707,0.04928911,140.97,140.95,3.5461]
[1723840759014,0.04928911,140.97,140.94,34.06123034]
[1723840760211,0.04928911,140.97,140.95,3.546]
[1723840760722,0.04928911,140.97,140.96,3.5459]
[1723840761113,0.04928911,140.97,140.94,34.06123034]
[1723840761417,0.04928911,140.97,140.95,3.546]
[1723840765121,0.04928911,140.97,140.94,0.05123034]
[1723840765618,3.59508911,140.97,140.94,3.59743034]
[1723840766320,0.04928911,140.97,140.94,0.05123034]
[1723840766818,3.5461,140.95,140.94,0.05123034]
[1723840767223,0.04928911,140.97,140.94,0.05123034]
[1723840767418,3.546,140.96,140.94,0.05123034]
[1723840768226,3.5461,140.95,140.94,0.05123034]
[1723840771226,3.5469,140.92,140.91,1.005]
[1723840771429,4.74,140.93,140.91,1.005]
[1723840771826,4.74,140.93,140.84,1.005]
[1723840771827,38.75,140.93,140.84,1.005]
[1723840772531,0.05354169,140.9,140.84,1.005]
[1723840772823,4.74,140.89,140.84,1.005]
[1723840773225,8.21585116,140.89,140.84,1.005]
[1723840773426,0.05354169,140.9,140.84,1.005]
[1723840774027,4.74,140.89,140.84,1.005]
[1723840774534,3.5483,140.87,140.84,1.005]
[1723840775127,3.60020669,140.87,140.84,1.005]
[1723840775430,3.60020669,140.87,140.84,4.5539]
[1723840777432,0.05190669,140.87,140.85,3.5486]
[1723840777931,0.05190669,140.87,140.86,3.5484]
[1723840778435,0.05190669,140.87,140.86,37.5584]
[1723840783137,1.2965,140.94,140.91,3.5471]
[1723840783842,4.843,140.94,140.9,34.01]
[1723840784336,0.05223474,140.93,140.91,0.05072631]
[1723840785232,0.05223474,140.93,140.91,3.59772631]
[1723840785938,0.05223474,140.93,140.92,3.5469]
[1723840786137,0.05223474,140.93,140.92,37.5569]
[1723840788840,4.74,140.98,140.94,3.5463]
[1723840789141,4.74,140.98,140.94,34.01]
[1723840789443,8.2855,140.98,140.95,3.5459]
[1723840789937,8.33503519,140.98,140.95,3.59558368]
[1723840790142,4.78953519,140.98,140.96,3.5458]
[1723840790447,4.78953519,140.98,140.96,34.01]
[1723840790448,0.04953519,140.98,140.96,34.01]
[1723840791145,0.04953519,140.98,140.97,3.5456]
[1723840792547,3.5442,141.03,141.0,3.5447]
[1723840792940,3.5442,141.03,141.01,3.5446]
[1723840793146,8.284,141.04,141.01,3.5446]
[1723840793456,3.544,141.04,141.01,3.5446]
[1723840793650,3.59694377,141.04,141.01,0.05383619]
[1723840793847,0.05294377,141.04,141.01,34.06383619]
[1723840794042,0.05294377,141.04,141.02,3.5443]
[1723840794352,3.59684377,141.04,141.01,34.06383619]
[1723840794852,0.05294377,141.04,141.01,37.60823619]
[1723840795054,0.05294377,141.04,141.01,34.06383619]
[1723840796841,0.05294377,141.04,141.02,3.5443]
[1723840799547,0.05294377,141.04,141.01,34.06383619]
[1723840800644,0.05294377,141.04,141.03,34.01]
[1723840801251,0.05294377,141.04,141.03,37.5541]
[1723840803057,4.74,141.08,141.06,3.5433]
[1723840803347,3.5427,141.09,141.06,3.5433]
[1723840803548,3.5429,141.08,141.05,3.5435]
[1723840803940,3.5887512,141.08,141.05,3.59331544]
[1723840806058,3.5432,141.07,141.05,0.04981544]
[1723840806251,0.0458512,141.08,141.05,0.04981544]
[1723840807154,3.5888512,141.08,141.05,3.59331544]
[1723840811959,3.5888512,141.08,141.06,13.6]
[1723840815251,0.0458512,141.08,141.06,13.6]
[1723840816071,0.0458512,141.08,141.06,17.1433]
[1723840816251,0.0458512,141.08,141.07,13.6]
[1723840816568,0.0458512,141.08,141.07,17.1431]
[1723840816763,0.0458512,141.08,141.07,13.6]
[1723840817266,3.5889512,141.08,141.05,0.04981544]
[1723840817469,3.5889512,141.08,141.05,13.64981544]
[1723840817858,3.5889512,141.08,141.05,17.19331544]
[1723840818861,3.5432,141.07,141.05,0.04981544]
[1723840819969,3.5433,141.06,141.05,0.04981544]
[1723840823173,9.6096,141.07,141.05,0.04981544]
[1723840823474,0.0458512,141.08,141.05,13.64981544]
[1723840823677,3.5888512,141.08,141.05,13.64981544]
[1723840824367,0.0458512,141.08,141.05,17.19321544]
[1723840824869,0.0458512,141.08,141.07,13.6]
[1723840826874,0.0458512,141.08,141.07,17.1431]
[1723840828173,0.0458512,141.08,141.07,13.6]
[1723840830087,0.0458512,141.08,141.07,17.1431]
[1723840830285,4.9219,141.19,141.07,72.72]
[1723840830477,1.3818,141.19,141.16,13.6]
[1723840830679,4.88164019,141.19,141.16,13.6]
[1723840830985,4.88164019,141.19,141.08,2.5919]
[1723840831278,4.88164019,141.19,141.15,13.6]
[1723840831979,0.04755422,141.18,141.08,2.5919]
[1723840832179,7.14255422,141.18,141.16,0.04854258]
[1723840832378,3.541,141.16,141.11,34.01]
[1723840832773,9.60164019,141.19,141.11,34.01]
[1723840832972,43.61164019,141.19,141.09,34.01]
[1723840833379,7.095,141.18,141.09,34.01]
[1723840833685,3.58654623,141.15,141.13,0.04851706]
[1723840835273,3.5413,141.14,141.13,0.04851706]
[1723840835679,0.04524623,141.15,141.13,0.04851706]
[1723840837481,0.04524623,141.15,141.13,3.59011706]
[1723840839486,0.04524623,141.15,141.13,34.05851706]
[1723840839983,0.04524623,141.15,140.96,7.0915]
[1723840840186,40.0926,141.15,141.06,34.01]
[1723840840483,34.01,141.11,141.02,34.01]
[1723840840673,34.01,141.09,141.0,34.01]
[1723840840878,3.5435,141.06,141.01,3.5445]
[1723840841078,1.3626,141.08,141.0,34.01]
[1723840841275,0.0540363,141.05,141.02,0.05276588]
[1723840844691,0.0540363,141.05,141.02,34.06276588]
[1723840845284,0.0540363,141.05,141.03,3.5438]
[1723840845983,0.0540363,141.05,141.04,37.5537]
[1723840850191,0.0540363,141.05,141.02,0.05276588]
[1723840850192,0.0540363,141.05,141.02,34.06276588]
[1723840850394,0.0540363,141.05,141.02,0.05276588]
[1723840850898,3.5439,141.03,141.02,0.05276588]
[1723840853291,7.01128548,141.03,141.02,0.05276588]
[1723840853800,4.80058548,141.03,140.96,36.6703]
[1723840854794,3.59700726,141.01,140.98,0.04936291]
[1723840855096,0.05240726,141.01,140.98,0.04936291]
[1723840855296,3.5448,141.0,140.98,0.04936291]
[1723840856697,3.59700726,141.01,140.98,0.04936291]
[1723840856894,0.05240726,141.01,140.99,34.01]
[1723840857298,0.05240726,141.01,141.0,3.5447]
[1723840858101,0.05240726,141.01,140.99,37.5548]
[1723840858502,0.05240726,141.01,140.99,34.01]
[1723840858693,0.05240726,141.01,141.0,3.5447]
[1723840859802,1.3352,141.07,141.03,3.5437]
[1723840860001,1.3352,141.07,140.98,34.05936291]
[1723840860002,4.72,141.06,141.02,34.01]
[1723840860504,9.61385388,141.07,141.02,34.01]
[1723840860905,3.5435,141.05,141.03,0.04822383]
[1723840861094,0.05352255,141.06,141.03,0.04822383]
[1723840861797,3.5434,141.05,141.03,0.04822383]
[1723840862207,3.5437,141.04,141.03,0.04822383]
[1723840862608,7.095,141.05,140.96,36.6703]
[1723840863005,3.5445,141.01,140.98,3.5452]
[1723840863403,4.72,141.02,140.96,36.6703]
[1723840863605,3.5445,141.01,140.98,0.05146083]
[1723840863806,0.04962244,141.0,140.98,0.05146083]
[1723840865812,4.72,141.05,140.98,34.06146083]
[1723840866123,4.72,141.05,141.0,34.01]
[1723840866302,3.5437,141.04,141.0,37.5545]
[1723840867000,0.0476447,141.03,141.01,0.04503064]
[1723840870616,0.0476447,141.03,141.01,3.58943064]
[1723840870818,0.0476447,141.03,141.01,0.04503064]
[1723840872114,3.5442,141.02,141.01,0.04503064]
[1723840875125,3.5442,141.02,140.92,4.8624249]
[1723840875126,34.01,141.02,140.9,2.7022]
[1723840875428,4.72,141.01,140.95,3.5458]
[1723840875925,3.545,140.99,140.95,3.5458]
[1723840876216,0.0462835,140.98,140.96,0.0512239]
[1723840877714,0.0462835,140.98,140.97,3.5454]
[1723840885326,4.72,141.02,140.96,34.0612239]
[1723840885529,4.72,141.02,140.97,34.01]
[1723840886033,3.5445,141.01,140.98,3.5451]
[1723840886426,3.59689389,141.01,140.98,3.5451]
[1723840886629,0.05239389,141.01,140.97,34.01]
[1723840887235,3.59679389,141.01,140.98,3.5449]
[1723840888233,0.05239389,141.01,140.97,34.01]
[1723840889531,0.05239389,141.01,140.96,0.0512239]
[1723840890621,3.5454,140.97,140.96,0.0512239]
[1723840890821,11.79300534,140.97,140.96,0.0512239]
[1723840891130,42.25760534,140.97,140.87,34.01]
[1723840891628,3.5465,140.93,140.89,3.5472]
[1723840891827,8.2665,140.93,140.89,3.5472]
[1723840892231,3.59177037,140.92,140.9,0.04659483]
[1723840892534,0.04507037,140.92,140.9,0.04659483]
[1723840892831,3.59197037,140.92,140.9,0.04659483]
[1723840894629,0.04507037,140.92,140.9,0.04659483]
[1723840895835,0.04507037,140.92,140.9,34.05659483]
[1723840896032,4.72,140.97,140.89,3.57111499]
[1723840896339,4.72,140.97,140.92,34.01]
[1723840896536,8.2655,140.97,140.93,3.5463]
[1723840896734,4.72,140.97,140.92,34.01]
[1723840897136,0.04788952,140.96,140.93,0.05118297]
[1723840898031,0.04788952,140.96,140.93,3.59748297]
[1723840898335,0.04788952,140.96,140.93,0.05118297]
[1723840898537,0.04788952,140.96,140.94,3.546]
[1723840899339,0.04788952,140.96,140.95,3.5459]
[1723840901735,4.72,141.02,140.98,3.545]
[1723840902133,3.5444,141.01,140.98,3.545]
[1723840902736,3.59427093,141.01,140.98,3.59856174]
[1723840903132,0.04987093,141.01,140.99,3.5449]
[1723840904440,0.04987093,141.01,141.0,3.5447]
[1723840905258,0.04987093,141.01,140.98,0.05356174]
[1723840906226,0.04987093,141.01,140.99,3.5448]
[1723840906635,0.04987093,141.01,140.98,0.05356174]
[1723840906837,0.04987093,141.01,140.98,3.59856174]
[1723840907032,3.59447093,141.01,140.98,3.59856174]
[1723840907737,3.5449,140.99,140.98,0.05356174]
[1723840908333,7.16088212,140.99,140.98,0.05356174]
[1723840908537,8.2649,140.99,140.98,0.05356174]
[1723840909145,11.81190177,140.99,140.98,0.05356174]
[1723840910336,3.5459,140.96,140.91,35.3753]
[1723840910536,3.5459,140.96,140.91,34.01]
[1723840911040,3.5459,140.96,140.92,3.5465]
[1723840911236,3.546,140.95,140.91,34.01]
[1723840911441,3.59800236,140.95,140.93,0.05346562]
[1723840911943,3.5462,140.94,140.93,0.05346562]
[1723840914241,3.59810236,140.95,140.93,0.05346562]
[1723840914429,0.05200236,140.95,140.93,0.05346562]
[1723840914834,3.59790236,140.95,140.93,0.05346562]
[1723840915433,0.05200236,140.95,140.93,34.06346562]
[1723840916749,0.05200236,140.95,140.94,3.5462]
[1723840917945,0.05200236,140.95,140.93,3.59986562]
[1723840918532,3.59810236,140.95,140.93,0.05346562]
[1723840918738,0.05200236,140.95,140.93,0.05346562]
[1723840919234,3.5462,140.94,140.93,0.05346562]
[1723840921937,3.547,140.91,140.88,3.5475]
[1723840922133,38.73,140.95,140.87,34.01]
[1723840922651,3.5465,140.93,140.89,3.5473]
[1723840923041,0.04830143,140.92,140.9,0.05336464]
[1723840923975,0.04830143,140.92,140.9,3.60056464]
[1723840924342,0.04830143,140.92,140.9,0.05336464]
[1723840925350,3.5469,140.91,140.9,0.05336464]
[1723840925551,0.04830143,140.92,140.9,0.05336464]
[1723840925949,3.5469,140.91,140.9,0.05336464]
[1723840927540,0.04830143,140.92,140.9,0.05336464]
[1723840927952,3.5469,140.91,140.9,0.05336464]
[1723840929142,8.2669,140.91,140.9,0.05336464]
[1723840929748,11.82964989,140.91,140.9,0.05336464]
[1723840932054,8.28274989,140.91,140.84,4.5536]
[1723840932458,8.28274989,140.91,140.85,3.5484]
[1723840932459,3.5476,140.89,140.85,3.5484]
[1723840933051,0.04879544,140.88,140.86,0.04816323]
[1723840933246,0.04879544,140.88,140.86,3.59626323]
[1723840934446,0.04879544,140.88,140.87,3.5479]
[1723840934845,0.04879544,140.88,140.86,0.04816323]
[1723840935045,0.04879544,140.88,140.86,3.59616323]
[1723840935246,0.04879544,140.88,140.86,0.04816323]
[1723840935849,0.04879544,140.88,140.87,3.5479]
[1723840937063,0.04879544,140.88,140.86,3.59626323]
[1723840938269,3.5479,140.87,140.86,0.04816323]
[1723840941158,0.04879544,140.88,140.86,0.04816323]
[1723840942366,3.59659544,140.88,140.86,0.04816323]
[1723840943256,3.5479,140.87,140.86,0.04816323]
[1723840943462,0.04879544,140.88,140.86,0.04816323]
[1723840943775,3.59659544,140.88,140.86,0.04816323]
[1723840944569,0.04879544,140.88,140.86,0.04816323]
[1723840945368,0.04879544,140.88,140.87,3.5479]
[1723840953993,0.04879544,140.88,140.87,17.1679]
[1723840954782,0.04879544,140.88,140.86,13.66816323]
[1723840954982,0.04879544,140.88,140.86,0.04816323]
[1723840955391,0.04879544,140.88,140.86,3.59616323]
[1723840955592,0.04879544,140.88,140.86,17.21616323]
[1723840956588,0.04879544,140.88,140.87,3.5479]
[1723840958384,3.5479,140.87,140.86,13.66816323]
[1723840958693,0.04879544,140.88,140.86,0.04816323]
[1723840959384,0.04879544,140.88,140.86,13.66816323]
[1723840960687,0.04879544,140.88,140.87,3.5479]
[1723840961589,0.04879544,140.88,140.87,17.1679]
[1723840963794,0.04879544,140.88,140.86,0.04816323]
[1723840964005,0.04879544,140.88,140.86,13.66816323]
[1723840964700,0.04879544,140.88,140.87,3.5479]
[1723840966597,0.04879544,140.88,140.86,0.04816323]
[1723840966897,0.04879544,140.88,140.86,17.21616323]
[1723840967404,0.04879544,140.88,140.87,17.1679]
[1723840970294,0.04879544,140.88,140.86,17.21626323]
[1723840970693,3.5479,140.87,140.86,0.04816323]
[1723840970900,0.04879544,140.88,140.86,0.04816323]
[1723840976501,0.04879544,140.88,140.86,13.66816323]
[1723840976703,0.04879544,140.88,140.86,0.04816323]
[1723840977107,3.59669544,140.88,140.86,0.04816323]
[1723840977607,0.04879544,140.88,140.86,0.04816323]
[1723840979697,3.59649544,140.88,140.86,0.04816323]
[1723840982611,0.04879544,140.88,140.86,13.66816323]
[1723840983412,0.04879544,140.88,140.87,13.62]
[1723840984317,0.04879544,140.88,140.87,17.1679]
[1723840994814,0.04879544,140.88,140.86,17.21626323]
[1723840995015,0.04879544,140.88,140.86,13.66816323]
[1723840995318,0.04879544,140.88,140.86,0.04816323]
[1723840996216,3.5479,140.87,140.86,0.04816323]
[1723840996826,3.5484,140.85,140.84,1.005]
[1723840997433,8.2684,140.85,140.84,1.005]
[1723840998526,11.76267119,140.85,140.84,1.005]
[1723840999529,8.21427119,140.85,140.79,13.62]
[1723840999831,0.05376377,140.83,140.78,70.01629641]
[1723841000028,3.5492,140.82,140.79,13.62]
[1723841000733,0.05376377,140.83,140.78,83.63629641]
[1723841000936,0.05376377,140.83,140.79,13.62]
[1723841001233,3.5493,140.82,140.79,13.62]
[1723841001636,3.60276377,140.83,140.79,17.1699]
[1723841001932,3.60276377,140.83,140.8,13.62]
[1723841002432,3.5492,140.82,140.79,13.62]
[1723841003228,3.60286377,140.83,140.79,13.62]
[1723841003435,3.60286377,140.83,140.81,13.62]
[1723841003632,0.05376377,140.83,140.81,13.62]
[1723841004432,3.60276377,140.83,140.81,13.62]
[1723841005625,0.05376377,140.83,140.81,13.62]
[1723841006335,0.05376377,140.83,140.82,13.62]
[1723841008834,0.05376377,140.83,140.82,17.1692]
[1723841011135,4.72,140.87,140.84,3.5485]
[1723841011334,4.72,140.87,140.85,13.62]
[1723841011531,1.32,140.93,140.86,3.5479]
[1723841011836,8.26657852,140.92,140.86,13.62]
[1723841012231,0.04689421,140.9,140.88,0.04969668]
[1723841013129,0.04689421,140.9,140.88,3.59719668]
[1723841013331,0.04689421,140.9,140.88,0.04969668]
[1723841014040,3.59419421,140.9,140.88,0.04969668]
[1723841014635,0.04689421,140.9,140.88,0.04969668]
[1723841015538,0.04689421,140.9,140.88,3.59729668]
[1723841016436,0.04689421,140.9,140.88,0.04969668]
[1723841016835,3.59419421,140.9,140.88,0.04969668]
[1723841017039,0.04689421,140.9,140.88,0.04969668]
[1723841017441,0.04689421,140.9,140.89,3.5474]
[1723841018939,0.04689421,140.9,140.88,3.59719668]
[1723841019539,0.04689421,140.9,140.89,3.5474]
[1723841020438,4.72,140.95,140.89,13.62]
[1723841020745,3.59990841,140.98,140.91,13.62]
[1723841020940,4.72,140.98,140.95,3.5458]
[1723841021137,1.3886,140.99,140.96,13.62]
[1723841021340,1.3886,140.99,140.94,13.62]
[1723841021531,3.5452,140.98,140.94,17.1659]
[1723841021737,3.5959826,140.98,140.95,0.05058068]
[1723841022845,3.5959826,140.98,140.95,3.59648068]
[1723841023248,0.0507826,140.98,140.95,3.59648068]
[1723841025847,0.0507826,140.98,140.96,13.62]
[1723841026445,0.0507826,140.98,140.96,17.1655]
[1723841028745,3.5960826,140.98,140.95,3.59648068]
[1723841029078,3.5457,140.96,140.95,0.05058068]
[1723841029245,0.0507826,140.98,140.95,0.05058068]
[1723841030034,3.5456,140.97,140.95,0.05058068]
[1723841033449,3.5959826,140.98,140.95,3.59648068]
[1723841034146,0.0507826,140.98,140.95,3.59648068]
[1723841034450,0.0507826,140.98,140.96,3.5455]
[1723841034844,0.0507826,140.98,140.96,17.1655]
[1723841035950,0.0507826,140.98,140.97,3.5454]
[1723841040653,0.0507826,140.98,140.95,13.67058068]
[1723841041157,3.5960826,140.98,140.95,17.21628068]
[1723841041453,3.5960826,140.98,140.95,3.59628068]
[1723841042747,0.0507826,140.98,140.95,13.67058068]
[1723841043255,3.5960826,140.98,140.95,17.21628068]
[1723841044162,0.0507826,140.98,140.95,13.67058068]
[1723841045258,3.5960826,140.98,140.95,17.21638068]
[1723841045862,0.0507826,140.98,140.96,3.5456]
[1723841047362,3.5959826,140.98,140.96,3.5456]
[1723841048261,0.0507826,140.98,140.96,3.5456]
[1723841048452,0.0507826,140.98,140.97,3.5454]
[1723841048765,0.0507826,140.98,140.97,17.1654]
[1723841057275,0.0507826,140.98,140.97,3.5454]
[1723841057671,3.5958826,140.98,140.96,13.62]
[1723841057984,0.0507826,140.98,140.95,0.05058068]
[1723841058184,3.5457,140.96,140.95,0.05058068]
[1723841059275,13.62,140.96,140.86,6.0297]
[1723841059470,13.62,140.94,140.87,13.62]
[1723841059672,17.23102575,140.94,140.87,13.62]
[1723841060081,3.5471,140.91,140.88,3.5475]
[1723841060284,3.59592411,140.91,140.88,3.59860092]
[1723841060479,3.5474,140.89,140.88,0.05110092]
[1723841060785,0.04882411,140.91,140.88,0.05110092]
[1723841061690,3.59582411,140.91,140.88,3.59870092]
[1723841063386,3.59582411,140.91,140.89,13.62]
[1723841066287,0.04882411,140.91,140.89,13.62]
[1723841066485,0.04882411,140.91,140.9,13.62]
[1723841066986,0.04882411,140.91,140.9,17.1672]
[1723841067377,0.04882411,140.91,140.9,3.5472]
[1723841067583,0.04882411,140.91,140.9,17.1672]
[1723841069391,0.04882411,140.91,140.9,13.62]
[1723841070191,0.04882411,140.91,140.9,17.1672]
[1723841075778,0.04882411,140.91,140.88,0.05110092]
[1723841075979,0.04882411,140.91,140.9,13.62]
[1723841076381,0.04882411,140.91,140.9,17.1672]
[1723841079387,3.546,140.95,140.92,3.5464]
[1723841079609,3.546,140.95,140.93,13.62]
[1723841080094,8.2458,140.96,140.93,17.1664]
[1723841080497,4.74899769,140.96,140.94,3.546]
[1723841080684,0.04899769,140.96,140.95,13.62]